bitfinex/quotes_ETHUSD_20251126
["timestamp","ask_amount","ask_price","bid_price","bid_amount"]
[1764154963094,0.72559411,2914.5,2914.4,0.4975]
[1764154963289,0.72559411,2914.5,2914.0,0.1949]
[1764154963448,6.36238053,2914.3,2914.0,0.6508]
[1764154963865,7.08797464,2914.3,2914.2,0.4975]
[1764154964261,7.08797464,2914.3,2914.2,0.995]
[1764154964467,7.08797464,2914.3,2914.2,0.4975]
[1764154966491,7.08797464,2914.3,2913.8,0.1907]
[1764154966492,7.88457464,2914.3,2913.8,0.1907]
[1764154966688,7.41187464,2914.3,2913.9,0.4975]
[1764154967359,7.08797464,2914.3,2913.9,0.4975]
[1764154967581,7.08797464,2914.3,2914.2,0.4702]
[1764154967991,7.08717464,2914.3,2914.2,0.9677]
[1764154968161,0.72559411,2914.3,2914.2,0.9677]
[1764154973983,0.72559411,2914.8,2914.2,0.9677]
[1764154974223,0.72559411,2914.8,2914.3,0.4975]
[1764154974392,0.72559411,2914.8,2914.7,0.4702]
[1764154974710,0.72559411,2914.9,2914.7,0.4702]
[1764154974910,0.72559411,2914.9,2914.8,0.9677]
[1764154975081,7.09394968,2914.9,2914.1,0.9677]
[1764154975279,6.36835557,2914.6,2914.2,0.4975]
[1764154975782,6.36835557,2914.6,2914.5,0.4702]
[1764154976182,6.36835557,2914.6,2914.5,0.9677]
[1764154976597,6.36835557,2914.8,2914.5,0.9677]
[1764154976814,0.72559411,2914.7,2914.5,0.9677]
[1764154977021,0.72559411,2914.7,2914.6,0.4975]
[1764154977319,0.72559411,2914.7,2914.6,0.9677]
[1764154981933,0.002,2914.8,2914.6,0.9677]
[1764154982236,0.002,2914.8,2914.7,0.9677]
[1764154986235,0.002,2914.8,2914.7,0.4702]
[1764154987060,0.002,2914.8,2914.7,0.9627]
[1764154987443,0.3492,2914.8,2914.4,0.4925]
[1764154987648,6.36835557,2914.7,2914.2,0.4925]
[1764154987955,0.002,2914.8,2914.7,0.4879]
[1764154988560,0.94459411,2914.8,2914.7,0.4879]
[1764154992663,0.94379411,2914.8,2914.7,0.9804]
[1764154992862,1.13109811,2914.5,2914.1,0.001]
[1764154993159,13.80490525,2914.2,2914.1,0.001]
[1764154993365,14.1258197,2914.2,2914.1,0.001]
[1764154993574,14.5836197,2914.2,2914.1,0.001]
[1764154995362,14.8006197,2914.2,2914.1,0.001]
[1764154995552,14.5836197,2914.2,2914.1,0.001]
[1764154995870,14.8006197,2914.2,2914.1,0.001]
[1764154997664,0.72559411,2914.2,2914.1,0.6433]
[1764154997973,0.0012,2914.8,2914.1,1.1181]
[1764154998190,0.0012,2914.8,2914.7,0.4549]
[1764154998687,0.0012,2914.8,2914.7,0.9297]
[1764155000074,6.36955557,2914.8,2914.7,0.9297]
[1764155000465,0.0012,2914.8,2914.7,0.9297]
[1764155005477,0.0012,2914.8,2914.1,0.1884]
[1764155005478,6.89795557,2914.8,2914.1,0.1884]
[1764155005821,6.89795557,2914.8,2914.2,0.4748]
[1764155005822,6.36835557,2914.6,2914.2,0.4748]
[1764155006181,6.36835557,2914.6,2914.5,0.4549]
[1764155006723,6.36835557,2914.6,2914.5,0.9297]
[1764155007728,6.36835557,2914.6,2914.5,0.4549]
[1764155008085,6.36835557,2914.6,2914.5,0.9297]
[1764155008518,6.36835557,2914.6,2914.5,0.4549]
[1764155010216,6.86065557,2914.6,2914.1,0.6632]
[1764155010385,6.36835557,2914.4,2914.1,0.1884]
[1764155011225,6.36835557,2914.4,2914.1,0.6632]
[1764155011427,6.67975557,2914.2,2914.1,0.001]
[1764155013710,6.36835557,2914.4,2914.1,0.4559]
[1764155014032,6.36835557,2914.4,2914.3,0.4549]
[1764155014232,6.58535557,2914.4,2914.3,0.4549]
[1764155014436,6.89675557,2914.4,2914.1,0.001]
[1764155015944,6.89675557,2914.4,2914.1,0.4758]
[1764155016729,6.36835557,2914.6,2914.3,0.4549]
[1764155016910,7.09394968,2914.6,2914.5,0.4549]
[1764155017312,7.09394968,2914.6,2914.5,0.9297]
[1764155017313,7.31014968,2914.6,2914.5,0.9297]
[1764155017740,7.31014968,2914.6,2914.5,0.4549]
[1764155020527,8.11194968,2914.6,2914.1,0.001]
[1764155020728,6.36835557,2914.4,2914.1,0.001]
[1764155020930,6.36835557,2914.4,2914.1,0.4758]
[1764155021130,6.36835557,2914.4,2914.3,0.4549]
[1764155023151,0.217,2914.6,2914.3,0.9297]
[1764155023334,0.217,2914.6,2914.5,0.4549]
[1764155027253,0.94259411,2914.6,2914.5,0.4549]
[1764155027425,0.94259411,2914.6,2914.5,0.9517]
[1764155027749,6.36835557,2914.7,2914.5,0.9517]
[1764155027750,6.58535557,2914.7,2914.5,0.9517]
[1764155027954,6.58535557,2914.7,2914.5,0.4549]
[1764155032256,7.31094968,2914.7,2914.6,0.9691]
[1764155032454,7.31094968,2914.7,2914.6,0.4723]
[1764155033160,7.31294968,2914.7,2914.6,0.4723]
[1764155034251,7.63398057,2914.7,2914.6,0.4723]
[1764155034648,7.96878057,2914.7,2914.1,0.001]
[1764155034857,7.64774968,2914.7,2914.2,0.4968]
[1764155035248,8.11324968,2914.7,2914.1,0.001]
[1764155035543,6.36835557,2914.4,2914.1,0.001]
[1764155035744,6.36835557,2914.5,2914.1,0.4978]
[1764155036569,0.217,2914.6,2914.1,0.4978]
[1764155037366,0.6838,2914.6,2914.1,0.4978]
[1764155037659,1.40939411,2914.6,2914.1,0.4978]
[1764155040233,0.94259411,2914.6,2914.1,0.4978]
[1764155040438,0.94259411,2914.6,2914.5,0.4723]
[1764155040662,1.0468732,2914.6,2914.5,0.4723]
[1764155040865,0.002,2914.7,2914.5,0.9691]
[1764155041070,0.002,2914.7,2914.6,0.4723]
[1764155041269,0.002,2914.7,2914.6,0.9691]
[1764155042213,0.0012,2914.7,2914.6,0.9691]
[1764155049536,0.0012,2914.7,2914.6,0.4723]
[1764155049927,0.0012,2914.7,2914.1,0.7129]
[1764155049928,0.8104,2914.7,2914.1,0.7129]
[1764155050129,0.005,2914.5,2914.1,0.7129]
[1764155050507,0.005,2914.5,2914.1,0.218]
[1764155050834,0.005,2914.5,2914.2,0.4949]
[1764155051012,0.4977,2914.7,2914.4,0.4928]
[1764155051343,0.4977,2914.7,2914.2,0.4949]
[1764155051722,0.4977,2914.7,2914.1,0.001]
[1764155051926,0.4977,2914.7,2914.5,0.001]
[1764155052330,0.3146,2914.6,2914.5,0.001]
[1764155053052,0.0012,2914.7,2914.5,0.4938]
[1764155056046,0.0012,2914.7,2914.5,0.001]
[1764155060247,0.3127,2914.6,2914.5,0.001]
[1764155060549,0.7945,2914.6,2914.5,0.001]
[1764155062553,0.3127,2914.6,2914.5,0.001]
[1764155062858,0.0012,2914.7,2914.5,0.4854]
[1764155066855,0.0004,2914.7,2914.5,0.4854]
[1764155068339,0.0004,2914.7,2914.6,0.9551]
[1764155070271,0.3296,2914.7,2914.5,0.001]
[1764155070470,0.4822,2914.7,2914.5,0.001]
[1764155070638,0.3292,2914.6,2914.5,0.001]
[1764155070971,0.0004,2914.7,2914.5,0.001]
[1764155073849,0.0004,2914.7,2914.6,0.4844]
[1764155075172,0.0004,2914.7,2914.6,0.9551]
[1764155079378,0.8099,2914.7,2914.5,0.001]
[1764155079583,0.4807,2914.7,2914.5,0.001]
[1764155079878,0.0004,2914.7,2914.5,0.001]
[1764155081888,0.0004,2914.7,2914.6,0.4844]
[1764155085504,0.8113,2914.7,2914.5,0.001]
[1764155085670,0.0033,2914.6,2914.5,0.001]
[1764155085981,0.4908,2914.6,2914.5,0.001]
[1764155086906,0.0004,2914.7,2914.5,0.4848]
[1764155087096,0.0004,2914.7,2914.6,0.4838]
[1764155091103,0.3239,2914.7,2914.5,0.001]
[1764155091407,0.3251,2914.6,2914.5,0.001]
[1764155091595,0.8086,2914.6,2914.5,0.001]
[1764155096526,0.3243,2914.6,2914.5,0.001]
[1764155096680,0.0004,2914.7,2914.5,0.4848]
[1764155097291,0.3259,2914.6,2914.5,0.001]
[1764155098228,0.3259,2914.6,2914.3,0.3713]
[1764155101622,0.3259,2914.6,2914.2,0.001]
[1764155101825,0.8134,2914.6,2914.2,0.001]
[1764155102267,0.4875,2914.5,2914.2,0.001]
[1764155102574,0.0854,2914.3,2914.2,0.001]
[1764155102778,6.77622915,2914.3,2914.2,0.001]
[1764155103080,13.9534251,2914.3,2914.2,0.001]
[1764155103381,7.58519595,2914.3,2914.2,0.001]
[1764155105149,7.26292915,2914.3,2914.2,0.001]
[1764155105778,7.98852326,2914.3,2914.2,0.001]
[1764155112000,7.26292915,2914.3,2914.2,0.001]
[1764155116200,7.26212915,2914.3,2914.2,0.001]
[1764155117114,6.77542915,2914.3,2914.2,0.001]
[1764155117341,0.217,2914.3,2914.2,0.9547]
[1764155117519,6.36822915,2914.6,2914.2,0.9547]
[1764155117716,0.217,2914.5,2914.2,0.9547]
[1764155118118,0.94259411,2914.5,2914.2,0.9547]
[1764155118303,0.217,2914.6,2914.4,0.4812]
[1764155118502,0.217,2914.6,2914.5,0.4812]
[1764155119022,7.06742915,2914.6,2914.3,0.4725]
[1764155119202,6.37232915,2914.4,2914.2,0.001]
[1764155121250,0.8907,2914.3,2914.2,0.001]
[1764155121454,0.3946,2914.3,2914.2,0.001]
[1764155121750,6.36822915,2914.4,2914.2,0.4822]
[1764155124655,6.36822915,2914.6,2914.3,0.4812]
[1764155124872,0.94259411,2914.5,2914.3,0.9537]
[1764155125157,0.72559411,2914.5,2914.3,0.4725]
[1764155125357,0.72559411,2914.5,2914.4,0.4812]
[1764155125730,1.12429411,2914.5,2914.2,0.001]
[1764155126554,1.12429411,2914.5,2914.2,0.4735]
[1764155127248,0.0004,2914.7,2914.4,0.4812]
[1764155127453,0.217,2914.6,2914.2,0.4735]
[1764155127763,0.0004,2914.7,2914.6,0.4812]
[1764155128258,0.0004,2914.7,2914.6,0.9537]
[1764155128448,0.0004,2914.7,2914.6,1.09118279]
[1764155129972,0.0004,2914.7,2914.6,1.49668679]
[1764155138502,0.0004,2914.7,2914.6,2.2222809]
[1764155139083,0.002,2915.1,2914.7,2.08479811]
[1764155139249,0.002,2915.1,2915.0,7.57502326]
[1764155139450,0.002,2915.1,2915.0,8.26452326]
[1764155139654,0.002,2915.1,2915.0,8.40195267]
[1764155140258,0.002,2916.2,2915.1,0.405504]
[1764155140453,0.002,2916.2,2915.4,1.13109811]
[1764155140689,0.002,2916.2,2915.5,0.6895]
[1764155141092,0.002,2916.2,2916.1,0.4812]
[1764155141093,0.0012,2916.2,2916.1,0.4812]
[1764155141289,0.0012,2916.2,2916.1,0.6636]
[1764155141587,0.0012,2916.2,2916.1,1.1361]
[1764155141787,0.0012,2916.2,2916.1,1.3264]
[1764155144391,0.0012,2916.2,2916.1,1.3419]
[1764155151124,0.8868,2916.2,2916.1,0.1903]
[1764155151477,0.428,2916.2,2916.1,0.1903]
[1764155153308,0.8868,2916.2,2916.1,0.1903]
[1764155156421,0.0012,2916.2,2916.1,0.1903]
[1764155156839,0.428,2916.2,2916.1,0.1903]
[1764155157012,0.0012,2916.2,2916.1,1.3297]
[1764155157414,0.428,2916.2,2916.1,0.1903]
[1764155157611,0.8868,2916.2,2916.1,0.1903]
[1764155159143,0.8868,2916.2,2915.6,0.216]
[1764155159351,0.4588,2916.1,2915.7,1.03074187]
[1764155159706,0.4271,2915.8,2915.7,1.03074187]
[1764155160319,0.8829,2915.8,2915.7,1.03074187]
[1764155160720,0.8829,2915.8,2915.2,0.216]
[1764155160900,0.4558,2915.7,2915.2,0.216]
[1764155161242,0.4274,2915.3,2915.2,0.216]
[1764155161629,0.883,2915.3,2915.1,0.8829]
[1764155161832,0.4277,2915.2,2914.7,0.216]
[1764155162003,0.883,2915.2,2914.7,1.0989]
[1764155162648,0.883,2915.2,2914.7,1.5868]
[1764155163146,0.4277,2915.2,2914.8,0.4879]
[1764155164646,0.883,2915.2,2914.8,0.4879]
[1764155165349,0.4277,2915.2,2914.8,0.4879]
[1764155165650,0.4892,2915.6,2915.1,0.481]
[1764155165850,0.4884,2915.6,2915.1,0.481]
[1764155166052,0.3944,2915.2,2914.7,1.0989]
[1764155166225,0.4884,2915.6,2914.7,1.0989]
[1764155166427,0.94259411,2915.8,2914.7,1.0989]
[1764155167057,0.72559411,2915.8,2914.8,0.4879]
[1764155167358,0.94159411,2915.8,2914.8,0.4879]
[1764155167826,0.4892,2915.7,2914.8,0.4879]
[1764155169240,0.4892,2915.7,2914.7,1.0989]
[1764155169635,0.4892,2915.7,2914.7,1.5868]
[1764155170050,0.4892,2915.7,2914.7,0.7039]
[1764155170367,0.4892,2915.7,2914.8,1.03104652]
[1764155173371,0.4892,2915.7,2914.9,0.4879]
[1764155173853,1.21479411,2915.7,2914.8,1.03104652]
[1764155174055,0.4529,2915.6,2914.9,0.488]
[1764155175746,0.4529,2915.6,2914.8,1.03104652]
[1764155175946,0.4529,2915.6,2914.9,0.488]
[1764155177362,0.002,2915.7,2914.9,0.488]
[1764155177545,0.002,2915.7,2915.0,0.4529]
[1764155178048,0.4549,2915.7,2915.0,0.4529]
[1764155178364,0.4549,2915.7,2915.0,0.9409]
[1764155179559,0.4549,2915.7,2915.1,0.6722]
[1764155179762,0.002,2915.7,2915.1,0.6722]
[1764155179938,0.002,2915.7,2915.6,0.4625]
[1764155180145,0.002,2915.7,2915.6,0.9505]
[1764155180534,0.002,2915.7,2915.6,1.08794311]
[1764155184566,0.002,2915.7,2915.6,0.59994311]
[1764155184751,0.002,2915.7,2915.6,1.08794311]
[1764155186784,0.002,2915.7,2915.6,8.39128794]
[1764155187081,0.002,2915.7,2915.6,2.03053722]
[1764155190540,0.0012,2915.7,2915.6,2.03053722]
[1764155195762,0.0012,2915.7,2915.6,8.79679194]
[1764155195960,0.0012,2915.7,2915.6,8.89679194]
[1764155197669,0.0012,2916.2,2916.1,0.505504]
[1764155197873,0.0012,2916.2,2916.1,8.36574883]
[1764155198076,0.0012,2916.2,2916.1,8.85374883]
[1764155198293,0.0012,2916.2,2916.1,8.95374883]
[1764155198460,0.0012,2916.2,2916.1,16.72212983]
[1764155198788,0.0012,2916.2,2916.1,16.3216233]
[1764155198985,0.0012,2916.2,2916.1,16.0526233]
[1764155199289,0.0012,2916.2,2916.1,13.0501233]
[1764155201068,0.0012,2916.2,2916.1,28.9507833]
[1764155201266,0.0012,2916.2,2916.1,24.3037723]
[1764155201661,0.0012,2916.2,2916.1,9.0911183]
[1764155201880,0.0012,2916.2,2916.1,2.63036758]
[1764155203566,0.0012,2916.2,2916.1,2.73036758]
[1764155206008,0.0012,2916.2,2916.1,6.40475358]
[1764155208076,0.0012,2916.2,2916.1,2.63036758]
[1764155208708,0.0012,2916.2,2916.1,2.14236758]
[1764155209108,0.0012,2916.2,2916.1,2.60226758]
[1764155209477,0.0012,2916.2,2916.1,2.70226758]
[1764155209988,0.0012,2916.2,2916.1,2.60226758]
[1764155210216,0.0012,2916.2,2916.1,9.15226758]
[1764155215130,0.0004,2916.2,2916.1,9.15226758]
[1764155216215,0.0004,2916.2,2916.1,17.41722358]
[1764155216528,0.002,2916.3,2916.2,8.22637811]
[1764155216693,0.002,2916.3,2916.2,21.97782883]
[1764155217129,0.002,2916.3,2916.2,22.11518792]
[1764155217433,0.002,2916.3,2916.2,25.20009192]
[1764155218133,0.002,2916.5,2916.2,25.10009192]
[1764155218334,0.002,2916.8,2916.6,1.13109811]
[1764155218633,0.002,2916.8,2916.7,14.73864883]
[1764155218810,0.002,2916.8,2916.7,34.59340783]
[1764155219019,0.002,2916.8,2916.7,32.79672293]
[1764155219402,0.002,2916.8,2916.7,24.55952593]
[1764155219834,0.002,2916.8,2916.7,24.96952593]
[1764155220234,0.002,2917.3,2916.7,24.96952593]
[1764155220235,0.002,2917.3,2917.1,0.505504]
[1764155220442,0.002,2917.3,2917.1,8.47884883]
[1764155220623,0.002,2917.3,2917.1,8.92768663]
[1764155220833,0.002,2917.3,2917.1,9.06499009]
[1764155221015,0.002,2917.3,2917.1,8.96499009]
[1764155221216,0.002,2917.3,2917.1,9.06499009]
[1764155221810,0.002,2917.3,2917.1,8.50509009]
[1764155222010,0.002,2917.3,2917.1,8.96499009]
[1764155222334,0.002,2917.3,2917.1,9.06499009]
[1764155224032,0.002,2917.3,2917.1,8.31589009]
[1764155225144,0.002,2917.3,2917.1,14.76589009]
[1764155225311,0.002,2917.3,2917.1,15.33849009]
[1764155225511,0.3999,2917.2,2917.1,7.71840157]
[1764155225813,0.3999,2917.2,2917.1,14.28409009]
[1764155226007,0.3999,2917.2,2917.1,14.77709009]
[1764155226008,0.002,2917.2,2917.1,14.77709009]
[1764155226410,0.002,2917.2,2917.1,15.34969009]
[1764155228823,0.39435728,2917.7,2917.3,0.405504]
[1764155229030,0.39435728,2917.7,2917.5,0.405504]
[1764155229237,0.39435728,2917.7,2917.6,0.216]
[1764155229532,0.39435728,2917.7,2917.6,0.61035728]
[1764155229715,0.79225728,2917.7,2917.6,0.61035728]
[1764155230144,0.3979,2917.7,2917.6,0.61035728]
[1764155230737,0.72559411,2919.3,2917.6,1.10335728]
[1764155230937,0.4752,2918.0,2917.6,1.10335728]
[1764155231136,0.4752,2918.0,2917.6,0.709]
[1764155231335,0.4752,2918.0,2917.7,0.4752]
[1764155231645,0.002,2917.9,2917.7,2.09929811]
[1764155232515,0.002,2917.9,2917.7,2.57189811]
[1764155233117,0.002,2917.9,2917.7,2.09929811]
[1764155233318,0.3199,2917.8,2917.7,1.60629811]
[1764155234723,0.7865,2917.8,2917.7,0.4752]
[1764155235057,0.3199,2917.8,2917.7,6.82488852]
[1764155235257,0.3199,2917.8,2917.7,0.4752]
[1764155235461,0.7865,2917.8,2917.7,0.46833659]
[1764155235870,0.7865,2917.8,2917.7,7.22352911]
[1764155236370,0.3199,2917.8,2917.7,7.22352911]
[1764155236732,0.002,2917.8,2917.7,14.34640774]
[1764155236962,0.002,2917.9,2917.8,16.07546811]
[1764155237165,0.002,2917.9,2917.8,2.13549811]
[1764155237365,0.002,2917.9,2917.8,4.22563711]
[1764155237924,0.002,2917.9,2917.8,18.99177411]
[1764155238126,0.002,2917.9,2917.8,5.97337411]
[1764155238366,0.002,2917.9,2917.8,7.93388663]
[1764155238749,0.002,2917.9,2917.8,11.06281263]
[1764155238952,0.002,2917.9,2917.8,8.38518663]
[1764155239251,0.002,2917.9,2917.8,17.60735115]
[1764155239967,0.0012,2917.9,2917.8,22.19535115]
[1764155240325,0.0012,2917.9,2917.8,21.19535115]
[1764155241243,0.0012,2917.9,2917.8,19.79235115]
[1764155241854,0.0012,2917.9,2917.8,17.49335115]
[1764155242938,0.0012,2917.9,2917.8,22.11847515]
[1764155243143,0.0012,2917.9,2917.8,21.65727515]
[1764155243540,0.0012,2917.9,2917.8,19.70225715]
[1764155243863,0.0012,2917.9,2917.8,19.15095715]
[1764155244068,0.0012,2917.9,2917.8,18.12155715]
[1764155244371,0.0012,2917.9,2917.8,18.67285715]
[1764155244542,0.0012,2917.9,2917.8,14.38357515]
[1764155244859,0.3305,2917.9,2917.8,7.48078663]
[1764155245241,0.3305,2917.9,2917.8,0.872104]
[1764155245442,0.3305,2917.9,2917.8,7.94838663]
[1764155246549,0.0012,2917.9,2917.8,8.40148663]
[1764155246754,0.002,2918.2,2918.1,22.604346]
[1764155246949,0.002,2918.2,2918.1,26.41094363]
[1764155247154,0.002,2918.2,2918.1,24.21703463]
[1764155247530,0.002,2918.2,2918.1,24.35429144]
[1764155247732,0.002,2918.2,2918.1,9.03204344]
[1764155247959,0.002,2918.2,2918.1,24.35770544]
[1764155248326,0.002,2918.5,2918.4,1.23109811]
[1764155248532,0.3313,2918.5,2918.4,7.48078663]
[1764155248942,0.3313,2918.5,2918.4,7.81208663]
[1764155249559,0.3313,2918.5,2918.4,0.3313]
[1764155249560,0.7966,2918.5,2918.4,0.3313]
[1764155252849,0.7966,2918.5,2918.1,0.216]
[1764155253048,0.0046,2918.2,2918.1,0.216]
[1764155253253,0.4712,2918.2,2917.8,0.218]
[1764155253451,0.5184,2917.9,2917.8,0.218]
[1764155253862,0.985,2917.9,2917.8,0.218]
[1764155254064,0.985,2917.9,2917.8,0.7364]
[1764155255878,0.985,2917.9,2917.8,0.5194]
[1764155258180,0.3247,2917.9,2917.8,7.27459252]
[1764155258558,0.985,2917.9,2917.8,0.924904]
[1764155259274,0.5184,2917.9,2917.8,0.924904]
[1764155259477,0.4666,2918.4,2917.9,0.405504]
[1764155259680,0.4666,2918.4,2917.9,0.622504]
[1764155260174,0.4666,2918.4,2918.0,0.4666]
[1764155260545,0.002,2918.5,2918.0,0.4666]
[1764155260747,0.002,2918.5,2918.1,0.405504]
[1764155260946,0.4686,2918.5,2918.1,0.405504]
[1764155263042,0.4686,2918.5,2917.9,0.217]
[1764155263241,0.002,2918.4,2918.3,0.405504]
[1764155263447,0.002,2918.4,2918.2,0.4666]
[1764155263806,0.7946,2918.3,2918.2,0.4666]
[1764155264580,0.7938,2918.3,2918.2,0.4666]
[1764155265468,0.7938,2918.3,2917.9,0.217]
[1764155265677,0.3279,2918.0,2917.9,0.217]
[1764155266086,0.7938,2918.0,2917.9,0.217]
[1764155266289,0.7938,2918.0,2917.9,0.434]
[1764155269030,0.7938,2918.0,2917.9,0.217]
[1764155276651,0.7938,2918.0,2917.8,0.001]
[1764155276819,0.9888,2917.9,2917.8,0.001]
[1764155281515,0.9888,2917.9,2917.5,0.001]
[1764155281716,0.3402,2917.6,2917.5,0.001]
[1764155282137,0.8062,2917.6,2917.5,0.001]
[1764155286837,1.0232,2917.6,2917.5,0.001]
[1764155289371,1.0224,2917.6,2917.5,0.001]
[1764155292267,0.3394,2917.6,2917.5,0.001]
[1764155292767,0.1813,2917.9,2917.5,0.4691]
[1764155293066,0.4557,2917.6,2917.5,0.001]
[1764155293250,0.3508,2917.8,2917.5,0.001]
[1764155294751,0.1813,2917.9,2917.5,0.001]
[1764155294948,0.6438,2917.9,2917.5,0.001]
[1764155296546,0.002,2918.3,2917.5,0.001]
[1764155296746,0.4625,2918.1,2917.5,0.4675]
[1764155296953,0.4625,2918.1,2917.5,0.001]
[1764155298051,0.3433,2917.6,2917.5,0.001]
[1764155298447,0.8058,2917.6,2917.5,0.001]
[1764155298739,0.3433,2917.6,2917.5,0.001]
[1764155299948,0.002,2917.8,2917.5,0.4693]
[1764155300140,0.4783,2917.6,2917.5,0.001]
[1764155300672,0.3297,2917.8,2917.5,0.4693]
[1764155301058,0.002,2917.8,2917.5,0.4693]
[1764155301448,0.4783,2917.6,2917.5,0.001]
[1764155302479,0.806,2917.6,2917.5,0.001]
[1764155302988,0.4783,2917.6,2917.5,0.001]
[1764155303684,0.806,2917.6,2917.5,0.001]
[1764155304081,0.4783,2917.6,2917.5,0.001]
[1764155305405,0.806,2917.6,2917.5,0.001]
[1764155306777,0.4783,2917.6,2917.5,0.001]
[1764155309078,0.806,2917.6,2917.5,0.001]
[1764155310220,0.4783,2917.6,2917.5,0.001]
[1764155310387,0.3297,2917.8,2917.5,0.001]
[1764155311402,0.002,2917.8,2917.7,0.4683]
[1764155312918,0.002,2917.8,2917.7,0.9348]
[1764155314026,0.0012,2917.8,2917.7,0.9348]
[1764155316320,0.0012,2917.8,2917.7,1.3993]
[1764155317610,0.3445,2917.8,2917.7,0.4645]
[1764155317812,0.807,2917.8,2917.5,0.001]
[1764155318025,0.3445,2917.8,2917.6,0.3445]
[1764155318895,0.0012,2917.8,2917.7,0.9348]
[1764155319510,0.0012,2917.8,2917.7,1.072144]
[1764155321326,0.0012,2917.8,2917.7,0.605644]
[1764155321628,0.0012,2917.8,2917.7,1.072144]
[1764155324522,0.8072,2917.8,2917.7,0.137344]
[1764155324700,0.8072,2917.8,2917.5,0.001]
[1764155324900,0.3302,2917.8,2917.5,0.4579]
[1764155325135,0.0012,2917.8,2917.5,0.4579]
[1764155328942,0.3541,2917.6,2917.5,0.4579]
[1764155329120,0.3541,2917.6,2917.5,0.001]
[1764155329653,0.8033,2917.6,2917.5,0.001]
[1764155330962,1.12462459,2917.6,2917.5,0.001]
[1764155331487,0.8033,2917.6,2917.5,0.001]
[1764155332029,1.0203,2917.6,2917.5,0.001]
[1764155332866,1.34137026,2917.6,2917.2,0.001]
[1764155333055,7.08021099,2917.3,2917.2,0.001]
[1764155333353,7.75542271,2917.3,2917.2,0.001]
[1764155333526,8.20462271,2917.3,2917.2,0.001]
[1764155334320,7.88351099,2917.3,2917.2,0.001]
[1764155334524,1.52889411,2917.3,2917.2,0.001]
[1764155336971,1.74589411,2917.3,2917.2,0.001]
[1764155339001,1.74509411,2917.3,2917.2,0.001]
[1764155339965,1.52809411,2917.3,2917.2,0.001]
[1764155340167,0.3541,2917.3,2917.2,0.001]
[1764155340468,0.8033,2917.3,2917.2,0.001]
[1764155341344,0.3541,2917.3,2917.2,0.001]
[1764155341564,1.0203,2917.3,2917.2,0.001]
[1764155345014,0.8033,2917.3,2917.2,0.001]
[1764155345200,1.0203,2917.3,2917.2,0.001]
[1764155348030,0.8033,2917.3,2917.2,0.001]
[1764155348228,0.4504,2917.8,2917.2,0.454]
[1764155348538,0.217,2917.7,2917.2,0.454]
[1764155348744,0.217,2917.7,2917.3,0.456]
[1764155349039,0.0012,2917.8,2917.3,0.456]
[1764155349245,0.0012,2917.8,2917.7,0.453]
[1764155349452,0.2182,2917.8,2917.7,0.453]
[1764155350717,0.0012,2917.8,2917.7,0.453]
[1764155353918,0.0012,2917.8,2917.7,0.909]
[1764155354529,0.0012,2917.8,2917.7,0.453]
[1764155354730,0.0012,2917.8,2917.7,1.08094212]
[1764155354929,0.0012,2917.8,2917.7,0.9436]
[1764155358724,0.0012,2917.8,2917.7,1.349104]
[1764155360332,0.0012,2917.8,2917.7,7.70246738]
[1764155360533,0.0012,2917.8,2917.7,1.349104]
[1764155361981,0.0012,2917.8,2917.7,7.70246738]
[1764155363449,0.0004,2917.8,2917.7,7.70246738]
[1764155363649,0.0004,2917.8,2917.7,0.9436]
[1764155363860,0.0004,2917.8,2917.7,0.453]
[1764155364760,0.0004,2917.8,2917.7,0.9436]
[1764155367178,0.0004,2917.8,2917.7,0.453]
[1764155367681,0.0004,2917.8,2917.7,0.9436]
[1764155368048,0.0004,2917.8,2917.7,0.453]
[1764155370180,0.0004,2917.8,2917.7,0.9436]
[1764155370573,0.3144,2917.8,2917.7,0.453]
[1764155370799,0.3144,2917.8,2917.5,0.3543341]
[1764155371188,0.3144,2917.8,2917.5,0.217]
[1764155371387,0.3144,2917.8,2917.5,0.7076]
[1764155371584,0.0004,2917.8,2917.5,0.217]
[1764155372500,0.3117,2917.6,2917.2,0.001]
[1764155372869,0.3117,2917.6,2917.2,0.4916]
[1764155373697,0.4817,2917.8,2917.5,0.4807]
[1764155374003,0.0004,2917.8,2917.5,0.4807]
[1764155376826,0.4845,2917.6,2917.2,0.001]
[1764155377213,0.4845,2917.6,2917.2,0.4916]
[1764155377407,0.0004,2917.8,2917.5,0.4807]
[1764155378223,0.4834,2917.8,2917.5,0.4807]
[1764155378406,0.0004,2917.8,2917.5,0.4807]
[1764155378725,0.0004,2917.8,2917.7,0.4807]
[1764155379127,0.3121,2917.8,2917.3,0.4906]
[1764155380734,0.3121,2917.8,2917.5,0.001]
[1764155383333,0.7934,2917.8,2917.5,0.001]
[1764155384424,0.0004,2917.8,2917.5,0.4662]
[1764155384909,0.0004,2917.8,2917.5,0.001]
[1764155385332,0.0004,2917.8,2917.5,0.4662]
[1764155385939,0.0004,2917.8,2917.7,0.487]
[1764155388136,0.4542,2918.0,2917.7,0.487]
[1764155388845,0.002,2918.1,2917.7,0.487]
[1764155390346,0.4546,2918.0,2917.7,0.487]
[1764155390645,0.4546,2918.0,2917.5,0.4662]
[1764155391010,0.1938,2917.9,2917.5,0.001]
[1764155391406,0.4546,2917.8,2917.5,0.001]